[Event "*** Titled Tuesday Blitz"]
[Site "Chess.com"]
[Date "2020.11.24"]
[Round "11"]
[White "No_t_ime_to_die"]
[Black "Lion-Al-Messi"]
[Result "1-0"]
[WhiteElo "2451"]
[BlackElo "2559"]
[TimeControl "180+1"]
[EndTime "12:25:00 PST"]
[Termination "No_t_ime_to_die won by resignation"]

1. e4 {[%clk 0:03:00.9]} 1... e6 {[%clk 0:03:00]} 2. d3 {[%clk 0:03:00.6]} 2...
d5 {[%clk 0:03:00.3]} 3. Qe2 {[%clk 0:03:01.5]} 3... dxe4 {[%clk 0:03:00.1]} 4.
dxe4 {[%clk 0:03:02.4]} 4... e5 {[%clk 0:03:00.5]} 5. Nf3 {[%clk 0:03:02.8]}
5... Nc6 {[%clk 0:03:00.9]} 6. g3 {[%clk 0:03:02.9]} 6... Nf6 {[%clk 0:03:01]}
7. Bg2 {[%clk 0:03:03.1]} 7... Bd6 {[%clk 0:03:01.2]} 8. O-O {[%clk 0:03:03.3]}
8... Qe7 {[%clk 0:03:01.1]} 9. Rd1 {[%clk 0:03:03.7]} 9... O-O {[%clk
0:03:01.1]} 10. Nc3 {[%clk 0:03:02.9]} 10... Bg4 {[%clk 0:03:01.1]} 11. Nb5
{[%clk 0:02:53.4]} 11... Rad8 {[%clk 0:02:57.4]} 12. Nxd6 {[%clk 0:02:49.5]}
12... cxd6 {[%clk 0:02:56.7]} 13. c3 {[%clk 0:02:47.9]} 13... d5 {[%clk
0:02:55.9]} 14. exd5 {[%clk 0:02:44.9]} 14... Rxd5 {[%clk 0:02:51.5]} 15. Rxd5
{[%clk 0:02:44.7]} 15... Nxd5 {[%clk 0:02:52.4]} 16. h3 {[%clk 0:02:45.1]} 16...
Bh5 {[%clk 0:02:51.1]} 17. g4 {[%clk 0:02:44.5]} 17... Bg6 {[%clk 0:02:50.2]}
18. Nxe5 {[%clk 0:02:43.2]} 18... Nxe5 {[%clk 0:02:50.3]} 19. Bxd5 {[%clk
0:02:41.9]} 19... Qd6 {[%clk 0:02:50.2]} 20. c4 {[%clk 0:02:37.2]} 20... Bd3
{[%clk 0:02:45.8]} 21. Qd2 {[%clk 0:02:32]} 21... Re8 {[%clk 0:02:40.7]} 22. f4
{[%clk 0:02:29.5]} 22... Qxd5 {[%clk 0:01:23.6]} 23. cxd5 {[%clk 0:02:27.4]}
23... Nf3+ {[%clk 0:01:22.9]} 24. Kh1 {[%clk 0:02:21.7]} 24... Nxd2 {[%clk
0:01:23.8]} 25. Bxd2 {[%clk 0:02:22.1]} 25... Re2 {[%clk 0:01:24.2]} 26. Bc3
{[%clk 0:02:20.8]} 26... Be4+ {[%clk 0:01:16.8]} 27. Kg1 {[%clk 0:02:20.8]}
27... Kf8 {[%clk 0:01:06.3]} 28. d6 {[%clk 0:02:18.2]} 28... Ke8 {[%clk
0:00:59.5]} 29. Re1 {[%clk 0:02:17.3]} 29... Rxe1+ {[%clk 0:00:50.9]} 30. Bxe1
{[%clk 0:02:18.2]} 30... b6 {[%clk 0:00:49.6]} 31. Bc3 {[%clk 0:02:18]} 31... f6
{[%clk 0:00:40.9]} 32. Kf2 {[%clk 0:02:13.1]} 32... Kd7 {[%clk 0:00:40.2]} 33.
Bb4 {[%clk 0:02:13.3]} 33... a5 {[%clk 0:00:39.6]} 34. Ba3 {[%clk 0:02:13.6]}
34... Bd5 {[%clk 0:00:37.7]} 35. b3 {[%clk 0:02:13.1]} 35... Be4 {[%clk
0:00:37.9]} 36. b4 {[%clk 0:02:08.4]} 36... Bb1 {[%clk 0:00:35.1]} 37. bxa5
{[%clk 0:02:08.1]} 37... bxa5 {[%clk 0:00:36]} 38. Ke3 {[%clk 0:02:05]} 38...
Bxa2 {[%clk 0:00:36.1]} 39. h4 {[%clk 0:02:05.6]} 39... h6 {[%clk 0:00:29.3]}
40. f5 {[%clk 0:02:03.7]} 40... Bb3 {[%clk 0:00:27.8]} 41. Kf4 {[%clk
0:02:03.2]} 41... Kc6 {[%clk 0:00:21.9]} 42. d7 {[%clk 0:01:53.7]} 42... Kxd7
{[%clk 0:00:20]} 43. Bf8 {[%clk 0:01:54.6]} 43... a4 {[%clk 0:00:19]} 44. Bxg7
{[%clk 0:01:55.1]} 44... Ke7 {[%clk 0:00:16.6]} 45. g5 {[%clk 0:00:51.5]} 45...
fxg5+ {[%clk 0:00:17.5]} 46. hxg5 {[%clk 0:00:52.1]} 46... h5 {[%clk 0:00:18.1]}
47. Bb2 {[%clk 0:00:46.6]} 47... Kf7 {[%clk 0:00:10.5]} 48. g6+ {[%clk 0:00:46]}
48... Kg8 {[%clk 0:00:10.1]} 49. f6 {[%clk 0:00:44.9]} 49... h4 {[%clk
0:00:02.4]} 50. Kg4 {[%clk 0:00:42.6]} 50... Be6+ {[%clk 0:00:01.7]} 51. Kxh4
{[%clk 0:00:42.2]} 51... a3 {[%clk 0:00:01.6]} 52. Bxa3 {[%clk 0:00:40.5]} 52...
Bf7 {[%clk 0:00:01.3]} 53. gxf7+ {[%clk 0:00:39.7]} 53... Kxf7 {[%clk
0:00:02.2]} 54. Bb2 {[%clk 0:00:40]} 1-0

[Event "*** Titled Tuesday Blitz"]
[Site "Chess.com"]
[Date "2020.11.24"]
[Round "11"]
[White "VladimirBugayev"]
[Black "Fusikk"]
[Result "0-1"]
[WhiteElo "2295"]
[BlackElo "2478"]
[TimeControl "180+1"]
[EndTime "12:25:02 PST"]
[Termination "Fusikk won on time"]

1. e4 {[%clk 0:03:00.9]} 1... c5 {[%clk 0:02:59.5]} 2. Nc3 {[%clk 0:03:00.6]}
2... a6 {[%clk 0:02:59.9]} 3. g3 {[%clk 0:02:56.3]} 3... b5 {[%clk 0:03:00.3]}
4. Bg2 {[%clk 0:02:54.6]} 4... Bb7 {[%clk 0:03:00.6]} 5. d3 {[%clk 0:02:54.4]}
5... d6 {[%clk 0:03:00.7]} 6. Nh3 {[%clk 0:02:54.8]} 6... Nd7 {[%clk 0:03:00.9]}
7. O-O {[%clk 0:02:54.6]} 7... e5 {[%clk 0:02:59.5]} 8. f4 {[%clk 0:02:51.2]}
8... Ngf6 {[%clk 0:02:59.3]} 9. Kh1 {[%clk 0:02:29.1]} 9... Be7 {[%clk
0:02:56.2]} 10. f5 {[%clk 0:02:23.7]} 10... b4 {[%clk 0:02:54.7]} 11. Nb1 {[%clk
0:02:20.8]} 11... d5 {[%clk 0:02:54.3]} 12. Nd2 {[%clk 0:02:18.5]} 12... Qc7
{[%clk 0:02:44.1]} 13. Qe2 {[%clk 0:02:17.2]} 13... O-O {[%clk 0:02:41.4]} 14.
g4 {[%clk 0:02:13.3]} 14... dxe4 {[%clk 0:02:38.2]} 15. dxe4 {[%clk 0:02:12.6]}
15... Nb6 {[%clk 0:02:28.5]} 16. g5 {[%clk 0:02:04.9]} 16... Nfd7 {[%clk
0:02:27.7]} 17. Qh5 {[%clk 0:01:45.2]} 17... Rfd8 {[%clk 0:02:02.5]} 18. f6
{[%clk 0:01:29.2]} 18... g6 {[%clk 0:02:01.6]} 19. Qe2 {[%clk 0:01:08.3]} 19...
Bf8 {[%clk 0:02:00.5]} 20. b3 {[%clk 0:01:08.9]} 20... c4 {[%clk 0:01:57]} 21.
bxc4 {[%clk 0:01:00.2]} 21... Nc5 {[%clk 0:01:55.8]} 22. Bb2 {[%clk 0:00:58.3]}
22... Nba4 {[%clk 0:01:50.6]} 23. Rab1 {[%clk 0:00:53.9]} 23... Nc3 {[%clk
0:01:48.4]} 24. Bxc3 {[%clk 0:00:53.3]} 24... bxc3 {[%clk 0:01:49.3]} 25. Nb3
{[%clk 0:00:52]} 25... Nxb3 {[%clk 0:01:45.6]} 26. Rxb3 {[%clk 0:00:44.1]} 26...
Rd2 {[%clk 0:01:45.8]} 27. Qe3 {[%clk 0:00:44.2]} 27... Rxc2 {[%clk 0:01:40.8]}
28. Rxc3 {[%clk 0:00:43.9]} 28... Rxa2 {[%clk 0:01:40.2]} 29. Nf2 {[%clk
0:00:39.3]} 29... Qc5 {[%clk 0:01:37]} 30. Qxc5 {[%clk 0:00:36.5]} 30... Bxc5
{[%clk 0:01:37.9]} 31. Nd3 {[%clk 0:00:35.4]} 31... Bd4 {[%clk 0:01:35.5]} 32.
Rb3 {[%clk 0:00:34.6]} 32... Bc6 {[%clk 0:01:27.7]} 33. Rfb1 {[%clk 0:00:34.5]}
33... Rf8 {[%clk 0:01:25.8]} 34. Rb8 {[%clk 0:00:31.7]} 34... Be8 {[%clk
0:01:18.9]} 35. Ra8 {[%clk 0:00:23.3]} 35... Ra1 {[%clk 0:01:13.1]} 36. Rxa1
{[%clk 0:00:21.5]} 36... Bxa1 {[%clk 0:01:14]} 37. Rxa6 {[%clk 0:00:21.3]} 37...
Bd4 {[%clk 0:01:14.5]} 38. Ra5 {[%clk 0:00:20.3]} 38... Bc6 {[%clk 0:01:13.5]}
39. Nxe5 {[%clk 0:00:20.2]} 39... Bb7 {[%clk 0:00:55.8]} 40. h4 {[%clk
0:00:15.4]} 40... Re8 {[%clk 0:00:55]} 41. Rb5 {[%clk 0:00:15.1]} 41... Bxe4
{[%clk 0:00:52.3]} 42. Bxe4 {[%clk 0:00:13.8]} 42... Bxe5 {[%clk 0:00:52.8]} 43.
Bd5 {[%clk 0:00:14.1]} 43... Rb8 {[%clk 0:00:49.4]} 44. Ra5 {[%clk 0:00:12.9]}
44... Bg3 {[%clk 0:00:47.6]} 45. Ra7 {[%clk 0:00:12.6]} 45... Rf8 {[%clk
0:00:46.1]} 46. c5 {[%clk 0:00:11.3]} 46... Bxh4 {[%clk 0:00:44.3]} 47. c6
{[%clk 0:00:10.5]} 47... Bxg5 {[%clk 0:00:42.5]} 48. c7 {[%clk 0:00:11.1]} 48...
Bf4 {[%clk 0:00:42.5]} 49. Rb7 {[%clk 0:00:09.6]} 49... Rc8 {[%clk 0:00:39.3]}
50. Rb4 {[%clk 0:00:02.2]} 50... Be5 {[%clk 0:00:34.2]} 51. Rc4 {[%clk
0:00:01.9]} 51... Rxc7 {[%clk 0:00:33]} 52. Re4 {[%clk 0:00:01.7]} 52... Bxf6
{[%clk 0:00:32.8]} 0-1

[Event "*** Titled Tuesday Blitz"]
[Site "Chess.com"]
[Date "2020.11.24"]
[Round "11"]
[White "frequentblunders"]
[Black "sboshaon21"]
[Result "0-1"]
[WhiteElo "2045"]
[BlackElo "2100"]
[TimeControl "180+1"]
[EndTime "12:25:04 PST"]
[Termination "sboshaon21 won by resignation"]

1. e3 {[%clk 0:02:15.7]} 1... d5 {[%clk 0:02:56.9]} 2. c4 {[%clk 0:02:14]} 2...
c6 {[%clk 0:02:54.6]} 3. Nc3 {[%clk 0:02:13.4]} 3... Nf6 {[%clk 0:02:53.8]} 4.
f4 {[%clk 0:02:13.8]} 4... g6 {[%clk 0:02:48.3]} 5. Nf3 {[%clk 0:02:14]} 5...
Bg7 {[%clk 0:02:48.1]} 6. d4 {[%clk 0:02:13.2]} 6... O-O {[%clk 0:02:47.2]} 7.
Ne5 {[%clk 0:02:12.6]} 7... Nbd7 {[%clk 0:02:37.6]} 8. Bd3 {[%clk 0:02:10.4]}
8... dxc4 {[%clk 0:02:21.8]} 9. Bxc4 {[%clk 0:02:06.7]} 9... e6 {[%clk
0:02:22.2]} 10. O-O {[%clk 0:01:59.6]} 10... a6 {[%clk 0:02:18.7]} 11. Qb3
{[%clk 0:01:55.4]} 11... c5 {[%clk 0:02:17.2]} 12. Nxf7 {[%clk 0:01:52.2]} 12...
Rxf7 {[%clk 0:02:09.8]} 13. Bxe6 {[%clk 0:01:51.7]} 13... Qe7 {[%clk 0:02:03.1]}
14. d5 {[%clk 0:01:31.2]} 14... Nf8 {[%clk 0:01:26.9]} 15. Bxf7+ {[%clk
0:01:24.6]} 15... Qxf7 {[%clk 0:01:27.8]} 16. e4 {[%clk 0:01:21]} 16... b5
{[%clk 0:01:20.3]} 17. e5 {[%clk 0:01:18.8]} 17... c4 {[%clk 0:01:19.3]} 18. Qd1
{[%clk 0:01:11.8]} 18... Ng4 {[%clk 0:00:48.4]} 19. Ne4 {[%clk 0:00:43.6]} 19...
Bf5 {[%clk 0:00:43.9]} 20. h3 {[%clk 0:00:34.9]} 20... Bxe4 {[%clk 0:00:40.6]}
21. hxg4 {[%clk 0:00:23.3]} 21... Bxd5 {[%clk 0:00:33.6]} 22. Be3 {[%clk
0:00:22.8]} 22... Rd8 {[%clk 0:00:32.3]} 23. Qc2 {[%clk 0:00:19.4]} 23... Qb7
{[%clk 0:00:19.1]} 24. Rae1 {[%clk 0:00:17.9]} 24... Be4 {[%clk 0:00:18.4]} 25.
Qf2 {[%clk 0:00:15.5]} 25... Bd3 {[%clk 0:00:17.1]} 26. f5 {[%clk 0:00:08.8]}
26... Bxe5 {[%clk 0:00:16.1]} 27. fxg6 {[%clk 0:00:07.9]} 27... Nxg6 {[%clk
0:00:15.2]} 28. Bh6 {[%clk 0:00:04]} 28... Bxf1 {[%clk 0:00:12]} 29. Rxf1 {[%clk
0:00:04.9]} 29... Bg7 {[%clk 0:00:09.7]} 30. Bxg7 {[%clk 0:00:04.8]} 30... Kxg7
{[%clk 0:00:10.6]} 31. Qf3 {[%clk 0:00:04.7]} 31... Qxf3 {[%clk 0:00:07.4]} 32.
Rxf3 {[%clk 0:00:05.3]} 32... Rd2 {[%clk 0:00:07.2]} 33. Rf2 {[%clk 0:00:04.3]}
33... Rxf2 {[%clk 0:00:07]} 34. Kxf2 {[%clk 0:00:05.2]} 34... Ne5 {[%clk
0:00:07.6]} 35. Kg3 {[%clk 0:00:05.3]} 35... Kg6 {[%clk 0:00:06.9]} 36. Kf4
{[%clk 0:00:06.2]} 36... Nd3+ {[%clk 0:00:06.6]} 0-1

[Event "*** Titled Tuesday Blitz"]
[Site "Chess.com"]
[Date "2020.11.24"]
[Round "11"]
[White "TheKingDoctor"]
[Black "Khnykin_Nikolay"]
[Result "1-0"]
[WhiteElo "2092"]
[BlackElo "2043"]
[TimeControl "180+1"]
[EndTime "12:25:06 PST"]
[Termination "TheKingDoctor won on time"]

1. d4 {[%clk 0:03:00.9]} 1... e6 {[%clk 0:02:47.5]} 2. e4 {[%clk 0:03:00.1]}
2... d5 {[%clk 0:02:47.1]} 3. exd5 {[%clk 0:03:01]} 3... exd5 {[%clk 0:02:48]}
4. c4 {[%clk 0:03:01]} 4... Nf6 {[%clk 0:02:47.3]} 5. Nc3 {[%clk 0:03:01.3]}
5... Bb4 {[%clk 0:02:46.5]} 6. Nf3 {[%clk 0:03:01.6]} 6... Ne4 {[%clk
0:02:46.1]} 7. Qb3 {[%clk 0:02:57.4]} 7... Nc6 {[%clk 0:02:41.6]} 8. cxd5 {[%clk
0:02:51.6]} 8... Bxc3+ {[%clk 0:02:31.9]} 9. bxc3 {[%clk 0:02:50.4]} 9... Ne7
{[%clk 0:02:30.1]} 10. Ne5 {[%clk 0:02:39.7]} 10... O-O {[%clk 0:02:25.3]} 11.
Ba3 {[%clk 0:02:23.1]} 11... Re8 {[%clk 0:02:22.9]} 12. d6 {[%clk 0:02:15.2]}
12... cxd6 {[%clk 0:02:21.5]} 13. Nxf7 {[%clk 0:02:06.2]} 13... Nd5 {[%clk
0:01:48.6]} 14. Nxd8 {[%clk 0:00:59.4]} 14... Nc5+ {[%clk 0:01:45.1]} 15. Kd2
{[%clk 0:00:58.9]} 15... Nxb3+ {[%clk 0:01:44]} 16. axb3 {[%clk 0:00:58.6]}
16... Rxd8 {[%clk 0:01:43.7]} 17. Bc4 {[%clk 0:00:59.2]} 17... Be6 {[%clk
0:01:40.6]} 18. Rhe1 {[%clk 0:00:59.7]} 18... Bf7 {[%clk 0:01:40.3]} 19. Re2
{[%clk 0:00:46.4]} 19... Re8 {[%clk 0:01:39.6]} 20. Rae1 {[%clk 0:00:45.4]}
20... Rxe2+ {[%clk 0:01:38.3]} 21. Rxe2 {[%clk 0:00:46.3]} 21... Nf4 {[%clk
0:01:33]} 22. Re7 {[%clk 0:00:37.2]} 22... Bxc4 {[%clk 0:01:30.5]} 23. bxc4
{[%clk 0:00:38.1]} 23... b6 {[%clk 0:01:20.8]} 24. g3 {[%clk 0:00:26]} 24... Ng6
{[%clk 0:01:04.3]} 25. Rd7 {[%clk 0:00:26.4]} 25... Rf8 {[%clk 0:01:03.2]} 26.
f4 {[%clk 0:00:25.4]} 26... Rf6 {[%clk 0:00:12.2]} 27. Rxa7 {[%clk 0:00:21.8]}
27... h5 {[%clk 0:00:11.4]} 28. Rd7 {[%clk 0:00:19.8]} 28... h4 {[%clk
0:00:11.1]} 29. Rxd6 {[%clk 0:00:19]} 29... Rxd6 {[%clk 0:00:10.5]} 30. Bxd6
{[%clk 0:00:18.5]} 30... hxg3 {[%clk 0:00:11.4]} 31. hxg3 {[%clk 0:00:19.1]}
31... Kf7 {[%clk 0:00:10.9]} 32. Bc7 {[%clk 0:00:19.3]} 32... Ke6 {[%clk
0:00:11.1]} 33. Bxb6 {[%clk 0:00:19.3]} 33... Ne7 {[%clk 0:00:08.6]} 34. Bd8
{[%clk 0:00:18.4]} 34... Nc6 {[%clk 0:00:07.6]} 35. Bh4 {[%clk 0:00:17.8]} 35...
g6 {[%clk 0:00:06.2]} 36. Kd3 {[%clk 0:00:18.1]} 36... Kf5 {[%clk 0:00:06.5]}
37. c5 {[%clk 0:00:16.1]} 37... Na5 {[%clk 0:00:06.5]} 38. c4 {[%clk 0:00:14.1]}
38... Nc6 {[%clk 0:00:05.6]} 39. d5 {[%clk 0:00:12.2]} 39... Nb4+ {[%clk
0:00:03.7]} 40. Kc3 {[%clk 0:00:11]} 40... Na6 {[%clk 0:00:01.5]} 41. Kd4 {[%clk
0:00:10.3]} 1-0

[Event "*** Titled Tuesday Blitz"]
[Site "Chess.com"]
[Date "2020.11.24"]
[Round "11"]
[White "Iskusnyh"]
[Black "ChessQueen"]
[Result "1/2-1/2"]
[WhiteElo "2619"]
[BlackElo "2736"]
[TimeControl "180+1"]
[EndTime "12:25:07 PST"]
[Termination "Game drawn by agreement"]

1. d4 {[%clk 0:03:00.9]} 1... Nf6 {[%clk 0:02:51.8]} 2. c4 {[%clk 0:03:00.1]}
2... e6 {[%clk 0:02:52.1]} 3. g3 {[%clk 0:02:59.9]} 3... d5 {[%clk 0:02:51.1]}
4. Nf3 {[%clk 0:02:59.4]} 4... dxc4 {[%clk 0:02:50.4]} 5. Bg2 {[%clk 0:02:59.2]}
5... Nc6 {[%clk 0:02:49.5]} 6. O-O {[%clk 0:02:58.1]} 6... Rb8 {[%clk
0:02:46.5]} 7. Nc3 {[%clk 0:02:54.5]} 7... Be7 {[%clk 0:02:40.9]} 8. Qa4 {[%clk
0:02:41.9]} 8... O-O {[%clk 0:02:26.1]} 9. Qxc4 {[%clk 0:02:41]} 9... Nb4 {[%clk
0:02:17.1]} 10. Bg5 {[%clk 0:02:26]} 10... b5 {[%clk 0:02:13.1]} 11. Qb3 {[%clk
0:02:00.2]} 11... a5 {[%clk 0:02:01.1]} 12. a3 {[%clk 0:01:50.2]} 12... a4
{[%clk 0:01:52.5]} 13. Qd1 {[%clk 0:01:48.4]} 13... Nbd5 {[%clk 0:01:50.4]} 14.
Nxd5 {[%clk 0:01:44.8]} 14... Nxd5 {[%clk 0:01:48.3]} 15. Bxe7 {[%clk
0:01:42.7]} 15... Nxe7 {[%clk 0:01:48.5]} 16. Rc1 {[%clk 0:01:36.9]} 16... Bb7
{[%clk 0:01:41.2]} 17. Rc5 {[%clk 0:01:27]} 17... Be4 {[%clk 0:01:24.9]} 18. Ne5
{[%clk 0:01:01.1]} 18... Bxg2 {[%clk 0:01:21.3]} 19. Kxg2 {[%clk 0:01:01.5]}
19... f6 {[%clk 0:01:15.4]} 20. Nf3 {[%clk 0:00:58.3]} 20... Qd6 {[%clk
0:01:12.7]} 21. Qd3 {[%clk 0:00:54.8]} 21... c6 {[%clk 0:01:12]} 22. Rfc1 {[%clk
0:00:52]} 22... Rfd8 {[%clk 0:01:12.3]} 23. Qe4 {[%clk 0:00:48.8]} 23... Rb6
{[%clk 0:00:46.2]} 24. e3 {[%clk 0:00:47.8]} 24... h6 {[%clk 0:00:43.1]} 25. Ne1
{[%clk 0:00:44.8]} 25... Kf7 {[%clk 0:00:37.7]} 26. Nd3 {[%clk 0:00:44.3]} 26...
Nd5 {[%clk 0:00:33.3]} 27. Qf3 {[%clk 0:00:43.5]} 27... Kg8 {[%clk 0:00:31.4]}
28. Nf4 {[%clk 0:00:40]} 28... Nxf4+ {[%clk 0:00:29.8]} 29. gxf4 {[%clk
0:00:34.7]} 29... Rc8 {[%clk 0:00:29.8]} 30. Kh1 {[%clk 0:00:33.8]} 30... Rc7
{[%clk 0:00:29.5]} 31. f5 {[%clk 0:00:33.3]} 31... exf5 {[%clk 0:00:27.5]} 32.
Qxf5 {[%clk 0:00:32.4]} 32... Rbb7 {[%clk 0:00:20.3]} 33. Qf3 {[%clk 0:00:31.7]}
33... Rb6 {[%clk 0:00:16.2]} 34. d5 {[%clk 0:00:31.5]} 34... Qe5 {[%clk
0:00:14.2]} 35. dxc6 {[%clk 0:00:27.4]} 35... Qxb2 {[%clk 0:00:14.2]} 36. R1c3
{[%clk 0:00:23.8]} 36... Qb1+ {[%clk 0:00:13.1]} 37. Kg2 {[%clk 0:00:22.8]}
37... b4 {[%clk 0:00:11.9]} 38. axb4 {[%clk 0:00:21.5]} 38... Qg6+ {[%clk
0:00:11]} 39. Qg3 {[%clk 0:00:21.2]} 39... Qxg3+ {[%clk 0:00:10.4]} 40. hxg3
{[%clk 0:00:21.7]} 40... Rxb4 {[%clk 0:00:10.7]} 41. Ra5 {[%clk 0:00:20.7]}
41... Rb6 {[%clk 0:00:10.3]} 42. Rac5 {[%clk 0:00:19.9]} 42... Ra6 {[%clk
0:00:09.9]} 43. Ra3 {[%clk 0:00:18.6]} 43... Kf7 {[%clk 0:00:10]} 44. Rc4 {[%clk
0:00:18.2]} 44... Rcxc6 {[%clk 0:00:09.3]} 45. Rcxa4 {[%clk 0:00:16.7]} 45...
Rxa4 {[%clk 0:00:09.2]} 46. Rxa4 {[%clk 0:00:16.7]} 46... Rc7 {[%clk 0:00:09.8]}
47. Ra6 {[%clk 0:00:16.2]} 47... Rd7 {[%clk 0:00:09.6]} 1/2-1/2

[Event "*** Titled Tuesday Blitz"]
[Site "Chess.com"]
[Date "2020.11.24"]
[Round "11"]
[White "Forantes"]
[Black "romulocardoso"]
[Result "1-0"]
[WhiteElo "2371"]
[BlackElo "2153"]
[TimeControl "180+1"]
[EndTime "12:25:07 PST"]
[Termination "Forantes won by resignation"]

1. Nf3 {[%clk 0:03:00.9]} 1... Nf6 {[%clk 0:02:55.4]} 2. g3 {[%clk 0:03:00.9]}
2... e6 {[%clk 0:02:55.1]} 3. Bg2 {[%clk 0:03:01.8]} 3... d5 {[%clk 0:02:56]} 4.
O-O {[%clk 0:03:02.7]} 4... Be7 {[%clk 0:02:53.4]} 5. d4 {[%clk 0:03:03.6]} 5...
O-O {[%clk 0:02:53.1]} 6. c4 {[%clk 0:03:04]} 6... b6 {[%clk 0:02:53.4]} 7. Nc3
{[%clk 0:03:04.7]} 7... Bb7 {[%clk 0:02:53.3]} 8. Ne5 {[%clk 0:03:04.6]} 8...
Nbd7 {[%clk 0:02:53.5]} 9. cxd5 {[%clk 0:02:57.5]} 9... exd5 {[%clk 0:02:53.4]}
10. Bf4 {[%clk 0:02:55.3]} 10... Rc8 {[%clk 0:02:51.9]} 11. Rc1 {[%clk
0:02:54.5]} 11... c5 {[%clk 0:02:51.8]} 12. Nxd7 {[%clk 0:02:49.5]} 12... Qxd7
{[%clk 0:02:51.3]} 13. Re1 {[%clk 0:02:18.5]} 13... Rfe8 {[%clk 0:02:50]} 14. e3
{[%clk 0:02:05.5]} 14... c4 {[%clk 0:02:45.6]} 15. Be5 {[%clk 0:01:57.7]} 15...
b5 {[%clk 0:02:43.9]} 16. Qf3 {[%clk 0:01:34.1]} 16... b4 {[%clk 0:02:42.8]} 17.
Bxf6 {[%clk 0:01:34]} 17... Bxf6 {[%clk 0:02:41.1]} 18. Nxd5 {[%clk 0:01:33.9]}
18... Bxd5 {[%clk 0:02:06.4]} 19. Qxd5 {[%clk 0:01:33.6]} 19... Qa4 {[%clk
0:02:07.3]} 20. Rxc4 {[%clk 0:01:29.2]} 20... Rcd8 {[%clk 0:02:03.2]} 21. Qb7
{[%clk 0:01:22.7]} 21... Qxa2 {[%clk 0:01:48.5]} 22. Qxb4 {[%clk 0:01:22.3]}
22... a5 {[%clk 0:01:47.6]} 23. Qc3 {[%clk 0:01:20.9]} 23... Rb8 {[%clk
0:01:39.9]} 24. Bc6 {[%clk 0:01:04.9]} 24... Rb3 {[%clk 0:01:34.5]} 25. Bxe8
{[%clk 0:00:55.7]} 25... Rxc3 {[%clk 0:01:31.7]} 26. Rxc3 {[%clk 0:00:56.6]}
26... Qxb2 {[%clk 0:01:30.4]} 27. Rc8 {[%clk 0:00:56]} 27... g6 {[%clk
0:01:29.2]} 28. Rc7 {[%clk 0:00:49.5]} 28... Qb8 {[%clk 0:01:15.4]} 29. Bxf7+
{[%clk 0:00:47.2]} 29... Kf8 {[%clk 0:01:14.5]} 30. Rec1 {[%clk 0:00:47.5]}
30... Qb2 {[%clk 0:01:07.2]} 31. Bd5 {[%clk 0:00:45.9]} 31... Be7 {[%clk
0:00:59.2]} 32. Rc8+ {[%clk 0:00:41.9]} 32... Kg7 {[%clk 0:00:56.1]} 33. R1c7
{[%clk 0:00:42.1]} 33... Kf6 {[%clk 0:00:55.5]} 34. Rc6+ {[%clk 0:00:39.2]}
34... Kg5 {[%clk 0:00:52.3]} 35. h4+ {[%clk 0:00:37.9]} 35... Kg4 {[%clk
0:00:50.8]} 36. Kg2 {[%clk 0:00:33.2]} 36... Kh5 {[%clk 0:00:34.7]} 37. Rh8
{[%clk 0:00:23.4]} 37... Kh6 {[%clk 0:00:32.6]} 38. h5 {[%clk 0:00:21.8]} 38...
Kg7 {[%clk 0:00:30.8]} 39. Re8 {[%clk 0:00:21.4]} 39... Bf6 {[%clk 0:00:27.2]}
40. Rg8+ {[%clk 0:00:18.7]} 40... Kh6 {[%clk 0:00:27.3]} 41. Rxf6 {[%clk
0:00:19.3]} 41... Qb5 {[%clk 0:00:25.4]} 42. Bf3 {[%clk 0:00:17.1]} 42... Kg5
{[%clk 0:00:21.6]} 43. hxg6 {[%clk 0:00:14.5]} 43... Kxf6 {[%clk 0:00:18.3]} 44.
gxh7 {[%clk 0:00:14.7]} 1-0

[Event "*** Titled Tuesday Blitz"]
[Site "Chess.com"]
[Date "2020.11.24"]
[Round "11"]
[White "BlixLT"]
[Black "Nachsueb"]
[Result "1-0"]
[WhiteElo "2329"]
[BlackElo "2181"]
[TimeControl "180+1"]
[EndTime "12:25:07 PST"]
[Termination "BlixLT won by checkmate"]

1. Nf3 {[%clk 0:02:56.2]} 1... Nf6 {[%clk 0:02:59.3]} 2. c4 {[%clk 0:02:55.6]}
2... g6 {[%clk 0:02:59.4]} 3. b3 {[%clk 0:02:54.6]} 3... Bg7 {[%clk 0:03:00]} 4.
Bb2 {[%clk 0:02:55.1]} 4... O-O {[%clk 0:02:59.9]} 5. g3 {[%clk 0:02:55.5]} 5...
b6 {[%clk 0:02:57.3]} 6. Bg2 {[%clk 0:02:55.6]} 6... Bb7 {[%clk 0:02:57.8]} 7.
O-O {[%clk 0:02:55.7]} 7... c5 {[%clk 0:02:57.5]} 8. Re1 {[%clk 0:02:55.1]} 8...
d5 {[%clk 0:02:54.3]} 9. cxd5 {[%clk 0:02:55.1]} 9... Nxd5 {[%clk 0:02:54.4]}
10. Bxg7 {[%clk 0:02:52.8]} 10... Kxg7 {[%clk 0:02:55.3]} 11. d4 {[%clk
0:02:53.2]} 11... cxd4 {[%clk 0:02:40.1]} 12. Nxd4 {[%clk 0:02:51.4]} 12... e6
{[%clk 0:02:24]} 13. e4 {[%clk 0:02:43.7]} 13... Ne7 {[%clk 0:02:20]} 14. Nc3
{[%clk 0:02:38.9]} 14... Nbc6 {[%clk 0:02:18.1]} 15. Ndb5 {[%clk 0:02:35.3]}
15... e5 {[%clk 0:01:59.3]} 16. Nd5 {[%clk 0:02:27.3]} 16... a6 {[%clk
0:01:50.5]} 17. Nbc3 {[%clk 0:01:48.8]} 17... Nd4 {[%clk 0:01:46.5]} 18. Nxe7
{[%clk 0:01:48.8]} 18... Qxe7 {[%clk 0:01:45.5]} 19. Nd5 {[%clk 0:01:49.1]}
19... Qd6 {[%clk 0:01:28.5]} 20. Rc1 {[%clk 0:01:30]} 20... Rac8 {[%clk
0:01:28.1]} 21. Qd3 {[%clk 0:01:24.6]} 21... Rxc1 {[%clk 0:01:22.7]} 22. Rxc1
{[%clk 0:01:23.4]} 22... Rc8 {[%clk 0:01:23]} 23. Rxc8 {[%clk 0:01:23.2]} 23...
Bxc8 {[%clk 0:01:23.9]} 24. Qc4 {[%clk 0:01:05.8]} 24... Bb7 {[%clk 0:01:02.5]}
25. f4 {[%clk 0:01:04.1]} 25... f6 {[%clk 0:00:58.7]} 26. h4 {[%clk 0:00:42]}
26... h5 {[%clk 0:00:56.9]} 27. Kf2 {[%clk 0:00:28.1]} 27... b5 {[%clk
0:00:47.4]} 28. Qc3 {[%clk 0:00:19.3]} 28... Kf7 {[%clk 0:00:42.2]} 29. Bf1
{[%clk 0:00:14.4]} 29... Bxd5 {[%clk 0:00:40.9]} 30. exd5 {[%clk 0:00:13.5]}
30... Qxd5 {[%clk 0:00:35.7]} 31. Qc7+ {[%clk 0:00:13.2]} 31... Kf8 {[%clk
0:00:33.8]} 32. Qc8+ {[%clk 0:00:12.6]} 32... Ke7 {[%clk 0:00:32.9]} 33. Bg2
{[%clk 0:00:09.3]} 33... Qd6 {[%clk 0:00:27.6]} 34. Qg8 {[%clk 0:00:08]} 34...
f5 {[%clk 0:00:23.3]} 35. Qg7+ {[%clk 0:00:08]} 35... Kd8 {[%clk 0:00:22.6]} 36.
fxe5 {[%clk 0:00:07.4]} 36... Qb6 {[%clk 0:00:20.2]} 37. Kf1 {[%clk 0:00:05.4]}
37... Qc7 {[%clk 0:00:17]} 38. Qf6+ {[%clk 0:00:03.2]} 38... Kc8 {[%clk
0:00:16.8]} 39. Qxa6+ {[%clk 0:00:02.4]} 39... Kb8 {[%clk 0:00:15.6]} 40. Qa8#
{[%clk 0:00:02.3]} 1-0